Cogmind - Beta 16 @@@ ROGUE MODE // 2025.11.27 @ 17:14:08 Player: Red Box Result: Destroyed by G-47 Trooper with Particle Gun Performance ------------- Evolutions (0) 0 Regions Visited (3) 600 Robots Destroyed (42) 210 Value Destroyed (787) 787 Prototype IDs (5) 100 Alien Tech Used (0) 0 Bonus (21) 21 TOTAL SCORE: 1718 Bonus ------- Follower Combat Kills 21 Cogmind --------- Core Integrity 0/250 Matter 300/300 Energy 234/250 System Corruption 0% Temperature Cool (63) Movement Walking (190) Ox1 Location -10/Subcaves Parts ------- > --- POWER (1) -------- Ion Engine > --- PROPULSION (2) --- Aluminum Leg Aluminum Leg > --- UTILITY (2) ------ Large Storage Unit Improved Terrain Scanner > --- WEAPON (2) ------- Beam Cannon Beam Cannon > --- INVENTORY (15) --- Subdweller Power Source Light Treads Light Treads Compact Wheel Improved Heat Sink Disposable Heat Sink Medium Storage Unit High-capacity Battery (250) High-capacity Matter Pod (200) Particle Gun Hammer Scrap Shield Fragment (46) Peak State ------------ > --- POWER ------------ Ion Engine > --- PROPULSION ------- Aluminum Leg Aluminum Leg > --- UTILITY ---------- Medium Storage Unit Improved Terrain Scanner > --- WEAPON ----------- Medium Laser Particle Gun > --- INVENTORY -------- Light Treads Light Treads Compact Wheel Improved Heat Sink Large Storage Unit High-capacity Battery High-capacity Matter Pod Beam Cannon Beam Cannon Hammer [Rating: 11] Favorites ----------- Power Ion Engine Engine Ion Engine Propulsion Aluminum Leg Leg Aluminum Leg Utility Improved Terrain Scanner Device Improved Terrain Scanner Storage Medium Storage Unit Weapon Assault Rifle Energy Gun Medium Laser Energy Cannon Beam Cannon Ballistic Gun Assault Rifle Launcher Grenade Launcher Special Weapon Mining Laser Impact Weapon Hammer Build | -11 -10 -10 -10 ------- Run | Yrd Mat Min Sub Slots Evolved . | . . . . Power . | . . . . Propulsion . | . . . . Utility . | . . . . Weapon . | . . . . Parts Attached 24 | 7 10 . 7 Power 4 | 1 3 . . Engine 4 | 1 3 . . Core . | . . . . Reactor . | . . . . Propulsion 7 | 2 3 . 2 Treads . | . . . . Leg 7 | 2 3 . 2 Wheel . | . . . . Hover . | . . . . Flight . | . . . . Utility 4 | 2 1 . 1 Device 1 | 1 . . . Storage 3 | 1 1 . 1 Processor . | . . . . Hackware . | . . . . Protection . | . . . . Artifact . | . . . . Weapon 9 | 2 3 . 4 Energy Gun 2 | . 1 . 1 Energy Cannon 2 | . . . 2 Ballistic Gun 2 | 2 . . . Ballistic Cannon . | . . . . Launcher 1 | . 1 . . Special Weapon 1 | . 1 . . Impact Weapon 1 | . . . 1 Slashing Weapon . | . . . . Piercing Weapon . | . . . . Special Melee Weapon . | . . . . Unidentified Prototypes . | . . . . Parts Lost 2 | . 1 1 . Power . | . . . . Propulsion . | . . . . Utility . | . . . . Weapon 2 | . 1 1 . Highest Loss Streak 1 | . 1 1 . To Critical Strikes . | . . . . Average Backups 8 | 4 8 9 9 Power . | . . . . Propulsion 3 | 3 3 3 3 Utility 2 | . 1 3 4 Weapon 2 | 1 2 3 2 Tool/Special . | . . . . Unused Backups 11 | . 3 . 8 Power 1 | . . . 1 Propulsion 4 | . 1 . 3 Utility 5 | . 1 . 4 Weapon 1 | . 1 . . Tool/Special . | . . . . Average Slot Usage (%) 99 | . 99 100 100 Engine 14 | . 14 14 14 Leg 28 | . 28 28 28 Device 13 | . 13 14 14 Storage 14 | . 14 14 14 Energy Gun 10 | . 10 14 6 Energy Cannon 2 | . . . 16 Ballistic Gun 12 | . 17 11 1 Peak Build Rating 11 | 9 10 10 11 Average Rating 9 | 6 9 9 10 On Entrance 7 | . 9 10 9 Avg Prop Armor Cover (%) . | . . . . Naked Turns . | . . . . Heaviest Build 32 | 14 20 21 32 Greatest Support 20 | 20 20 20 20 Greatest Overweight (x) 3 | 3 . 1 1 Average Overweight (x) . | . . . . Largest Inventory Capacity 15 | 8 10 10 15 Average Capacity 9 | 7 8 10 11 Most Carried 12 | 6 10 10 12 Average Carried 8 | 4 8 9 10 Final Capacity 15 | 8 10 10 15 Final Carried 12 | 6 10 9 12 Class Distribution -------------------- 94% | Mutant 5% | Scavenger-Mutant Dominant Class ---------------- Mutant | -10/Materials Mutant | -10/Mines Mutant | -10/Subcaves Resources | -11 -10 -10 -10 ----------- Run | Yrd Mat Min Sub Matter Collected 1230 | 322 642 159 107 Remotely . | . . . . Salvage Created 1114 | 184 633 164 133 Parts 72 | 12 39 13 8 Haulers Intercepted 2 | . 2 . . Recyclers Shooed . | . . . . Parts Field Recycled . | . . . . Retrieved Matter . | . . . . Parts Self-Destructed 13 | . . . 13 Prevented . | . . . . Parts Restored . | . . . . Kills | -11 -10 -10 -10 ------- Run | Yrd Mat Min Sub Combat Hostiles Destroyed 24 | . 11 10 3 Guns 13 | . 8 4 1 Cannons 2 | . . . 2 AOE 9 | . 3 6 . Classes Destroyed 10 | 2 6 . 2 Worker 3 | . 3 . . Builder 3 | . 2 1 . Tunneler 4 | 4 . . . Hauler 2 | . 2 . . Recycler 1 | 1 . . . Turret 2 | . . . 2 Watcher 3 | . 3 . . Swarmer 12 | . 3 8 1 Grunt 11 | . 8 2 1 Subdweller 1 | . . . 1 Best Kill Streak 7 | 2 6 7 3 Combat Bots Only 6 | . 3 6 1 Max Kills in Single Turn 3 | 1 3 3 1 Gunslinging . | . . . . Exploded 3 | . 1 3 . Melee . | . . . . Uniques/NPCs Destroyed . | . . . . Combat | -11 -10 -10 -10 -------- Run | Yrd Mat Min Sub Hostile Shots Fired 108 | . 51 27 30 Missed 30 | . 12 6 12 Hits 78 | . 39 21 18 Projectile 78 | . 39 21 18 Critical Strikes 3 | . 1 1 1 Damage Taken 888 | . 385 292 211 Core 261 | . 80 83 98 Absorbed by Shields . | . . . . Regen/Repaired (Parts) 10 | . 10 . . Core Remaining (%) 100 | 100 . . . Volleys Fired 113 | 13 65 17 18 Largest 2 | 2 2 2 2 Hottest 120 | 40 100 80 120 Shots Fired 221 | 26 125 34 36 Gun 189 | 26 120 25 18 Cannon 18 | . . . 18 Launcher 11 | . 2 9 . Special 3 | . 3 . . Kinetic 122 | 26 79 8 9 Thermal 88 | . 44 17 27 Explosive 11 | . 2 9 . Electromagnetic . | . . . . Robot Hit Streak 8 | 5 7 8 6 Robot Miss Streak 13 | 2 13 2 2 Penetration Max . | . . . . Secondary Targets . | . . . . Shots Hit Robots 107 | 14 56 15 22 Core Hits 68 | 7 39 14 8 Critical Kills . | . . . . Critical Parts Destroyed . | . . . . Critical Strikes 2 | . . 1 1 Burn 2 | . . 1 1 Melee Attacks 1 | . . . 1 Impact 1 | . . . 1 Slashing . | . . . . Piercing . | . . . . Sneak Attacks . | . . . . Combat Hostiles . | . . . . Follow-up Attacks . | . . . . Damage Inflicted 2216 | 151 1152 579 334 Guns 1191 | 151 703 178 159 Cannons 175 | . . . 175 Explosions 826 | . 425 401 . Melee . | . . . . Ramming . | . . . . Kinetic 783 | 151 494 79 59 Thermal 640 | . 266 99 275 Explosive 550 | . 149 401 . Electromagnetic 243 | . 243 . . Impact . | . . . . Slashing . | . . . . Piercing . | . . . . Highest Corruption . | . . . . Average Corruption . | . . . . Corruption Purged . | . . . . Corruption Blocked . | . . . . Overload Shots . | . . . . Overflow Damage 17 | . . 17 . Projectiles . | . . . . Explosions 17 | . . 17 . Melee . | . . . . Knockbacks . | . . . . Impact . | . . . . Kinetic . | . . . . Secondary . | . . . . Self-Inflicted Damage 80 | . 8 72 . Shots 3 | . 1 2 . Rammed . | . . . . Targets Rammed . | . . . . Kicked . | . . . . Crushed . | . . . . Highest Temperature 126 | . 78 126 54 Average Temperature 26 | . 22 36 24 Received Heat Transfer 369 | . 144 81 144 Siege Activations . | . . . . Martial Activations . | . . . . Shielding Activations . | . . . . Robots Disrupted 2 | . 2 . . Combat Hostiles . | . . . . Robots Corrupted . | . . . . Combat Hostiles . | . . . . Parts Fried . | . . . . Impact Corruptions . | . . . . Robots Melted . | . . . . Combat Hostiles . | . . . . Parts Melted . | . . . . Heat Transferred 1839 | . 729 370 740 Parts Sabotaged . | . . . . Parts Stolen . | . . . . Parts Stripped . | . . . . Power Chain Reactions 1 | . 1 . . Alert | -11 -10 -10 -10 ------- Run | Yrd Mat Min Sub Maximum Alert Level . | . . . . Low Security (%) 100 | 100 100 100 . Level 1 . | . . . . Level 2 . | . . . . Level 3 . | . . . . Level 4 . | . . . . Level 5 . | . . . . High Security . | . . . . Max Security . | . . . . Peak Influence 167 | 10 167 167 . Initial 23 | . . 23 . Average 72 | 1 67 92 . Influence Increases 1147 | 25 551 383 188 Destroy 0b10 Robot/C 560 | . 220 220 120 Destroy 0b10 Robot/NC 80 | 25 50 5 . Destroy Leader 120 | . 80 40 . Allied During Kill 11 | . . 3 8 Successful Hack 49 | . 49 . . Select Force Hacks 60 | . 60 . . Disable Machine 75 | . 75 . . Destroy Structure 72 | . 17 55 . Lose Combat Pursuer 120 | . . 60 60 Influence Decreases 1135 | 25 490 381 239 Entered New Map 72 | . . 38 34 Time Decay 983 | 25 480 333 145 Lost Part 20 | . 10 10 . Lost Ally 60 | . . . 60 Squads Dispatched 5 | . 5 . . Investigation 4 | . 4 . . Extermination . | . . . . Reinforcement 1 | . 1 . . Assault . | . . . . Garrison . | . . . . Intercept . | . . . . Searches Triggered . | . . . . Construction Impeded . | . . . . Haulers Reinforced . | . . . . Active Scanning Responses . | . . . . Cargo Convoy Interrupts . | . . . . Stealth | -11 -10 -10 -10 --------- Run | Yrd Mat Min Sub Distress Signals . | . . . . Communications Jammed . | . . . . Distress Signals . | . . . . Times Spotted 40 | . 18 12 10 Peak Tracking Total 4 | . 4 3 4 Tactical Retreats 6 | . . 3 3 Traps | -11 -10 -10 -10 ------- Run | Yrd Mat Min Sub Traps Triggered 1 | . 1 . . Indirectly . | . . . . Trap Hack Attempts . | . . . . Triggered . | . . . . Disarmed . | . . . . Reprogrammed . | . . . . Reused . | . . . . Traps Extracted . | . . . . Installed . | . . . . Triggered . | . . . . Machines | -11 -10 -10 -10 ---------- Run | Yrd Mat Min Sub Machines Disabled 7 | . 5 . 2 Max in Single Turn 1 | . 1 . . Machines Repaired . | . . . . Machines Dismantled . | . . . . Machines Sabotaged . | . . . . Overloaded Fab Kills . | . . . . Hacking | -11 -10 -10 -10 --------- Run | Yrd Mat Min Sub Machines Accessed 10 | . 10 . . Terminals 7 | . 7 . . Fabricators . | . . . . Repair Stations 1 | . 1 . . Recycling Units 2 | . 2 . . Scanalyzers . | . . . . Garrison Access . | . . . . Total Hacks 36 | . 36 . . Successful 21 | . 21 . . Failed 15 | . 15 . . Catastrophic 1 | . 1 . . Database Lockouts . | . . . . Manual 22 | . 22 . . Terminals 27 | . 27 . . Fabricators . | . . . . Repair Stations 2 | . 2 . . Recycling Units 7 | . 7 . . Scanalyzers . | . . . . Garrison Access . | . . . . Terminal Hacks 6 | . 6 . . Robot Analysis 1 | . 1 . . Prototype ID Bank 2 | . 2 . . Terminal Index 1 | . 1 . . Locate Traps 2 | . 2 . . Fabricator Hacks . | . . . . Repair Station Hacks 2 | . 2 . . Scan Component 1 | . 1 . . Repair 1 | . 1 . . Recycling Unit Hacks 1 | . 1 . . Retrieve Components 1 | . 1 . . Scanalyzer . | . . . . Garrison Access Hacks . | . . . . Unauthorized Hacks 12 | . 12 . . Terminals 10 | . 10 . . Botnet 3 | . 3 . . Disrupt 1 | . 1 . . Operators 1 | . 1 . . Skim 5 | . 5 . . Fabricators . | . . . . Repair Stations . | . . . . Recycling Units 2 | . 2 . . Tunnel 2 | . 2 . . Scanalyzers . | . . . . Garrison Access . | . . . . Data Cores Recovered . | . . . . Used . | . . . . Hacking Detections 10 | . 10 . . Full Trace Events 2 | . 2 . . Feedback Events . | . . . . Feedback Blocked . | . . . . Robot Schematics Acquired . | . . . . Robots Built . | . . . . Authchips . | . . . . Time . | . . . . Total Robot Build Rating . | . . . . Part Schematics Acquired . | . . . . Parts Built . | . . . . Authchips . | . . . . Time . | . . . . Total Part Build Rating . | . . . . Part Studies Acquired . | . . . . Parts Repaired 1 | . 1 . . Time 38 | . 38 . . Parts Recycled . | . . . . Recycled Matter . | . . . . Retrieved Matter . | . . . . Retrieved Components 9 | . 9 . . Parts Scanalyzed . | . . . . Part Schematics Acquired . | . . . . Parts Damaged . | . . . . Bothacking | -11 -10 -10 -10 ------------ Run | Yrd Mat Min Sub Used RIF Installer . | . . . . Robots Hacked . | . . . . Non-combat . | . . . . Combat . | . . . . Robot Hacks Applied . | . . . . Relay Couplers Released . | . . . . Fabnet Peak Effective % . | . . . . Robots Rewired . | . . . . Allies Hacked . | . . . . Hacks Repelled . | . . . . Allies | -11 -10 -10 -10 -------- Run | Yrd Mat Min Sub Total Allies 3 | . . 3 . Largest Group 3 | . . 3 3 Highest-Rated Group 40 | . . 40 40 Highest-Rated Ally 16 | . . 16 16 Total Orders 3 | . . 2 1 STAY 2 | . . 1 1 FOLLOW 1 | . . 1 . Ally Attacks 26 | . . 6 20 Total Damage 232 | . . 63 169 Kills 3 | . . 1 2 Allies Corrupted . | . . . . Allies Melted . | . . . . Intel | -11 -10 -10 -10 ------- Run | Yrd Mat Min Sub Active Infowar (turns) 3279 | 70 1746 882 581 Terrain 3279 | 70 1746 882 581 Robot Analysis Total 1 | . 1 . . Derelict Logs Recovered 3 | . . 3 . Drone Launches . | . . . . Drone Recoveries . | . . . . Exploration | -11 -10 -10 -10 ------------- Run | Yrd Mat Min Sub Turns Passed 3394 | 147 1784 882 581 Spaces Moved 2000 | 75 1095 595 235 Core 8 | 8 . . . Treads . | . . . . Legs 1992 | 67 1095 595 235 Wheels . | . . . . Hover . | . . . . Flight . | . . . . Fastest Speed 50 | 50 120 120 120 Average Speed 130 | 126 120 129 181 Slowest Speed 200 | 200 120 190 190 Overloaded Moves . | . . . . Propulsion Burnouts . | . . . . Robots Hopped . | . . . . Potential Cave-ins . | . . . . Cave-ins Triggered . | . . . . Exploration Rate (%) 54 | 5 99 98 16 Regions Visited 3 Branch Regions 2 Pre-discovered Areas 2 | . 2 . . Known Exits Taken 1 | . 1 . . Unknown Exits Taken 2 | 1 . 1 . Scrap Searched 1 | . . 1 . Spaces Dug 8 | . 2 6 . Terrain Destroyed 83 | . 15 68 . Melee . | . . . . Projectile 2 | . 2 . . AOE 81 | . 13 68 . Terrain Rammed . | . . . . Walls Destroyed . | . . . . Machines Disabled . | . . . . Actions | -11 -10 -10 -10 --------- Run | Yrd Mat Min Sub Total 2564 | 100 1440 671 353 Wait 384 | . 246 56 82 Move 1997 | 74 1094 594 235 Hop . | . . . . Pick Up 20 | 6 9 . 5 Fast Attach 8 | 7 1 . . Attach 4 | . 1 1 2 Detach . | . . . . Swap 22 | . 13 3 6 Drop 15 | . 11 . 4 Fire 113 | 13 65 17 18 Melee 1 | . . . 1 Ram . | . . . . Kick . | . . . . Crush . | . . . . Escape Stasis . | . . . . Rewire . | . . . . Trap . | . . . . Miscellaneous . | . . . . Route ------- -11/Scrapyard -10/Materials (discovered 6 exits: *Mat x3 / *Min x2 / [*Sub]) -10/Mines (discovered 3 exits: *Mat x2 / [*Sub]) -10/Subcaves (discovered 1 exit: [*Rec]) History --------- Turn | Location | Event 28 | -11/Scrapyard | Discovered new exit (range 15) 148 | -11/Scrapyard | Entered Materials 301 | -10/Materials | Build established: Mutant 460 | -10/Materials | Discovered new exit (range 8) 507 | -10/Materials | Discovered new exit (range 15) 578 | -10/Materials | Discovered new exit (range 15) 808 | -10/Materials | Discovered new exit (range 8) 1232 | -10/Materials | Discovered new exit (range 9) 1268 | -10/Materials | Learned 2 Mines zone layouts 1295 | -10/Materials | Learned location of 2 exits from Mines 1312 | -10/Materials | Identified exit to Mines 1318 | -10/Materials | Discovered new exit (range 8) 1319 | -10/Materials | Learned Storage trap positions 1335 | -10/Materials | Learned Storage emergency access door positions 1362 | -10/Materials | Learned location of 1 exit from Storage 1524 | -10/Materials | Repaired Imp. Terrain Scanner 1932 | -10/Materials | Entered Mines 1933 | -10/Mines | Identified exit to Materials 2214 | -10/Mines | Core integrity fell below 50% 2264 | -10/Mines | Learned Materials garrison access intel 2461 | -10/Mines | Assisted by bots powering up and referring to "LRC-V3" 2501 | -10/Mines | Learned location of 1 exit from Materials 2562 | -10/Mines | Learned Materials stockpile data 2803 | -10/Mines | Discovered new exit (range 6) 2814 | -10/Mines | Entered Subcaves 2814 | -10/Subcaves | Accompanied by 3 allies 2844 | -10/Subcaves | Discovered new exit (range 12) 2879 | -10/Subcaves | Lost 3 allies 3388 | -10/Subcaves | Core integrity fell below 20% 3395 | -10/Subcaves | Destroyed by G-47 Trooper with Particle Gun Last Messages --------------- 02862_ Acquired 24 matter. 02866_ Acquired 3 matter. 02876_ Dropped Assault Rifle. 02878_ Acquired Imp. Heat Sink. 02879_ Acquired 10 matter. 02884_ Dropped Aluminum Leg. 02892_ Acquired 20 matter. 02899_ Subatomizers dissect the Aluminum Leg. 02980_ Dropped Med. Laser. 02997_ YB-G34(u) builds Twisted Machinery. 03174_ AE-MO2(R) destroyed. 03190_ Acquired 30 matter. 03194_ Acquired Sub. Power Source. 03199_ Acquired Scrap Shield Fragment. 03202_ Acquired Disposable Heat Sink. 03242_ Acquired 20 matter. 03385_ G-34 Mercenary destroyed. 03389_ Aluminum Leg fries itself beyond repair. 03389_ Critical hit (Burn: +37). 03394_ Heat Sink fries itself beyond repair. Map ----- +----------------------------------------------------+ | ?????????????????????????????????????????????????? | | ?????????????????????????????????????????????????? | | ?????????????????????????????????????????????????? | | ?????????????????????????????????????????????????? | | ?????????????????????????????????????????????????? | | ?????????????????????????????????????????????????? | | ?????????????????????????????????????????????????? | | ?????????????????????????????????????????????????? | | ?????????????????????????????????????????????????? | | ?????????????????????????????????????????????????? | | ?????????????????????????????????????????????????? | | ??????????????????? ??#???# ?????????????????????? | | ????????????????? ?????#??????? ?????????????????? | | ??????????????????????? ?????????????????????????? | | ????????????#?? ?? ???????????? ????????????????? | | ??????????????"???????????????? ?????????????????? | | ?????????#???????#?#?????????????? ??????????????? | | ??????????????"??#???????????????????????????????? | | ?????????????????????#??????????? ?????????????? | | ??????????????##??????????? ???? #???????????? | | ????????#?????????????#? ????? #???????????? | | ???????????#?#??#??#??????##? ? ????????????? | | ???????????????????????????? ? #????????????? | | ????#???????????#???####??#???? ?????????????? | | ???????#????????###?# ######??# #?#???????????? | | ???????????????????## ##@##?? #?????????????? | | ?#?????#?#?????##### =### ##????????????? | | ?#????????#????# ## % ?????????????? | | ??????#????????# g ##???????????? | | #??#?????????#?# ## #???????????? | | ??????????###?## ### #? ??????????????? | | ??????????#???# ##?# % #?#??????????????? | | ?????????????### #### ##????##??????????? | | ???????#??#????## ### ####??????????????? | | ?????????#???#??## % #????#?????#??????? | | ?####?#???#??????## ##?????##?????????? | | ?# #####?#????##?#### ####?? #?????????? | | ## ##?##?##?#?#### ## #????????? | | "## #??## #??##??## #????????? | | ## = ##??# #???#???## ##????????? | | ##[=% ##### #??#?#??## #???#?????? | | % %=%## ##???#### ### #????????? | | [##= #??## ## ##??####????????? | | # #??## ##??#??????????? | | ### ##?## #?????????????? | | ### ## ##### # # #?????????????? | | "## ##?# #?## ##### ###????????????? | | #### #??? #?## #?## #??????#?##????? | | ???## ##?#? #??## #### #?###??????????? | | ??#?# ##?#? #???## #### ##??????????????? | +----------------------------------------------------+ Best States ------------- Heat Dissipation 25 Energy Generation 10 Energy Capacity 250 Matter Stores 300 Matter Capacity 300 Sight Range 16 Terrain Scan Range 16 Terrain Scan Density 10 Evasion (%) 55 Item Schematics ----------------- None Robot Schematics ------------------ None Fabricated ------------ Nothing Repaired ---------- Imp. Terrain Scanner | 54% | -10/Materials Studied --------- None Alien Tech Used ----------------- None Achievements -------------- None Challenges ------------ None Game ------ Seed VoltaicDrainedMallet Manual? 0 Play Time 00:20:47 Cumulative 735.7 hours Start 2025.11.27 @ 16:55:49 End 2025.11.27 @ 17:14:08 Sessions 1 Manual Loads 0 Difficulty Rogue Special Mode None Game No. 516 Rogue 516 Adventurer 0 Explorer 0 Win Type - Total 1 Types 1/0/0/0/0/0/0/0/0/0 Lore% 71 Gallery% 68 Achievement% 47 Wizard Run 0 Options --------- Layout 1 ASCII 0 Keyboard 0 Movement Mouse Keybinds 0 Fullscreen 1 Font 20/SmallcapsGlow Map View 54x42 Zoom Use 0% Tactical HUD 1 Map Filters NONE Filters NONE Steam 1 RUN: bbd0e820-da5d-48e7-a9bf-26ff2ffe7e1c